bitfinex/quotes_ETHUSD_20220119
["timestamp","ask_amount","ask_price","bid_price","bid_amount"]
[1642607970304,0.63318846,3125.5,3124.9,0.8003213]
[1642607970495,0.0022737,3125.5,3125.0,1.60034]
[1642607970692,0.0022737,3125.5,3125.1,2.4005579]
[1642607971494,1.09776392,3125.3,3125.1,2.4005579]
[1642607971696,0.0022737,3125.5,3125.1,4.0009379]
[1642607971895,0.0022737,3125.5,3125.2,0.80018]
[1642607972597,0.0022737,3125.5,3125.2,2.8044212]
[1642607972797,0.0022737,3125.5,3125.3,1.44853799]
[1642607972994,1.18964843,3126.3,3125.3,1.44853799]
[1642607973195,0.57027572,3126.2,3125.5,0.8000216]
[1642607973449,1.18964843,3126.3,3125.5,1.6000216]
[1642607973450,0.00113684,3125.7,3125.5,1.6000216]
[1642607973649,1.18964843,3126.3,3125.9,1.42402772]
[1642607973853,0.00964708,3127.1,3125.9,1.42402772]
[1642607974054,0.57092668,3127.0,3126.0,5.75]
[1642607974252,0.57547407,3127.0,3126.0,5.75113684]
[1642607974450,0.57092668,3126.9,3126.2,0.79984]
[1642607974851,0.00341054,3126.8,3126.2,0.79984]
[1642607975072,3.21393075,3126.8,3126.2,0.79984]
[1642607975253,0.00284212,3126.7,3126.2,0.79984]
[1642607975656,0.0022737,3126.6,3126.2,0.79984]
[1642607976055,0.00170527,3126.5,3126.2,0.79984]
[1642607976455,0.00113685,3126.4,3126.2,0.79984]
[1642607976755,1.49844897,3126.7,3126.2,0.79984]
[1642607977210,0.0022737,3126.6,3126.2,0.79984]
[1642607977615,0.00170527,3126.5,3126.2,0.79984]
[1642607978014,1.32798704,3126.8,3126.2,0.79984]
[1642607978413,0.00170527,3126.7,3126.2,0.79984]
[1642607978612,1.29804472,3126.7,3126.2,0.79984]
[1642607978811,0.00113685,3126.6,3126.2,0.79984]
[1642607979613,1.32798704,3126.8,3126.2,0.79984]
[1642607979812,1.32798704,3126.8,3126.3,0.00170527]
[1642607980014,1.32798704,3126.8,3126.4,0.7998735]
[1642607980221,1.32798704,3126.8,3126.5,0.79993]
[1642607986898,1.32798704,3126.8,3126.3,2.40133527]
[1642607986899,0.80004,3126.7,3126.3,0.00170527]
[1642607987100,6.57479944,3126.4,3126.3,0.00170527]
[1642607987396,6.57479944,3126.4,3125.8,0.00454739]
[1642607987811,6.57479944,3126.4,3125.7,0.00511582]
[1642607987997,1.18627455,3125.8,3125.7,0.00511582]
[1642607988339,1.21153355,3125.8,3125.7,0.00511582]
[1642607989137,1.27931131,3126.2,3125.7,0.00511582]
[1642607989339,1.27931131,3126.2,3125.8,0.80007]
[1642607989541,1.27931131,3126.2,3125.8,1.6001368]
[1642607989738,1.27931131,3126.2,3125.9,0.00397897]
[1642607989940,0.8002,3126.1,3125.9,0.00397897]
[1642607990141,1.3654137,3126.1,3125.9,0.00397897]
[1642607990344,6.54077336,3126.0,3125.9,0.00397897]
[1642607990642,7.29877336,3126.0,3125.7,0.00511582]
[1642607990841,0.758,3126.0,3125.7,0.00511582]
[1642607991043,0.458,3126.0,3125.7,1.21706578]
[1642607991240,1.20017419,3126.3,3125.7,1.21706578]
[1642607991442,1.20017419,3126.3,3125.8,0.00454739]
[1642607991842,1.20017419,3126.3,3125.7,0.00511582]
[1642607992090,1.20017419,3126.3,3125.8,0.799983]
[1642607992290,2.38266288,3126.3,3125.8,0.799983]
[1642607992490,2.38266288,3126.3,3125.9,0.00397897]
[1642607992687,2.38266288,3126.3,3125.9,1.60407897]
[1642607993193,2.38266288,3126.3,3126.0,0.00341054]
[1642607994698,0.54111518,3126.2,3126.0,0.00341054]
[1642607995699,0.57479944,3126.4,3126.0,0.00341054]
[1642607995950,0.57479944,3126.4,3126.0,4.43246712]
[1642607996142,0.57479944,3126.4,3126.1,1.5996905]
[1642607996342,0.57479944,3126.4,3126.1,1.60253262]
[1642607996541,0.57479944,3126.4,3126.2,0.0022737]
[1642607996745,2.73042497,3126.3,3126.2,0.0022737]
[1642607997150,2.73042497,3126.3,3126.1,0.00284212]
[1642607997346,3.18842497,3126.3,3126.1,0.00284212]
[1642607997544,3.18842497,3126.3,3125.7,0.00511582]
[1642607997745,3.18842497,3126.3,3125.8,0.00454739]
[1642607997944,3.18842497,3126.3,3125.6,1.6002]
[1642607998148,1.16404224,3125.7,3125.6,1.6002]
[1642607998547,1.16404224,3125.7,3125.6,0.00568424]
[1642607998548,5.41404224,3125.7,3125.6,0.00568424]
[1642607998946,7.86174224,3125.7,3124.8,0.01023163]
[1642607999246,2.77492915,3124.9,3124.8,0.01023163]
[1642607999719,2.77492915,3124.9,3124.7,1.61161005]
[1642607999920,2.77492915,3124.9,3124.8,0.01023163]
[1642608000321,0.458,3125.5,3124.8,0.01023163]
[1642608000519,0.758,3125.5,3125.0,0.80035]
[1642608000724,0.758,3125.5,3125.0,0.769963]
[1642608000725,0.8004,3125.4,3125.0,0.769963]
[1642608000923,1.1004,3125.4,3124.8,0.01023163]
[1642608001320,2.76034657,3125.3,3124.8,0.01023163]
[1642608001619,3.57874657,3125.3,3124.8,0.01023163]
[1642608001818,0.8005,3125.1,3124.8,0.00709321]
[1642608002030,1.1005,3125.1,3124.8,0.00709321]
[1642608002217,0.02405366,3125.0,3124.8,0.00709321]
[1642608002418,1.1005,3125.1,3124.8,0.00709321]
[1642608003639,0.02405366,3125.0,3124.8,0.00709321]
[1642608003840,1.1005,3125.1,3124.8,0.00709321]
[1642608005340,0.02405366,3125.0,3124.8,0.00709321]
[1642608005843,0.8005,3125.1,3124.8,0.00709321]
[1642608006445,0.8005,3125.1,3124.7,1.60081]
[1642608006645,1.1005,3125.1,3124.7,1.60081]
[1642608006845,0.02405366,3124.9,3124.7,1.60081]
[1642608007088,1.1005,3125.1,3124.8,0.00709321]
[1642608007489,1.1005,3125.1,3124.5,0.00879848]
[1642608007688,1.25595853,3124.7,3124.5,0.00879848]
[1642608008088,3.01457603,3124.7,3124.5,0.00879848]
[1642608008288,0.02405366,3124.6,3124.5,0.00879848]
[1642608009290,0.7076348,3124.6,3124.5,0.00879848]
[1642608009490,1.39121594,3124.6,3124.5,0.00879848]
[1642608011556,8.39121594,3124.6,3124.5,0.00879848]
[1642608012152,2.39121594,3124.6,3124.5,0.00879848]
[1642608012360,4.29121594,3124.6,3124.5,0.00879848]
[1642608012557,5.29121594,3124.6,3124.5,0.00879848]
[1642608012756,5.29121594,3124.6,3124.2,0.01050375]
[1642608012957,5.56716228,3124.6,3124.2,0.01050375]
[1642608013160,0.02405366,3124.4,3124.2,0.01050375]
[1642608013459,0.3,3124.5,3124.2,0.01050375]
[1642608014688,0.7076348,3124.4,3124.2,0.01050375]
[1642608014887,0.68358114,3124.3,3124.2,0.01050375]
[1642608015088,0.97978114,3124.3,3124.2,0.01050375]
[1642608016200,1.0038348,3124.3,3124.2,0.01050375]
[1642608016395,1.0038348,3124.3,3124.1,0.01107217]
[1642608016797,0.97978114,3124.3,3124.1,0.01107217]
[1642608017396,1.27978114,3124.3,3124.1,0.01107217]
[1642608017798,0.02405366,3124.2,3124.1,0.01107217]
[1642608017997,0.02405366,3124.2,3124.0,0.01164059]
[1642608018200,1.33800047,3124.2,3124.0,0.01164059]
[1642608018445,1.33800047,3124.2,3123.9,0.01220902]
[1642608018446,2.89764062,3124.2,3123.9,0.01220902]
[1642608018644,2.89764062,3124.2,3123.5,0.01448271]
[1642608018850,1.339094,3123.6,3123.5,0.01448271]
[1642608019045,1.339094,3123.6,3123.5,2.43625976]
[1642608019244,1.36314766,3123.6,3123.5,2.43625976]
[1642608019446,1.36314766,3123.6,3123.5,0.01448271]
[1642608019653,1.36314766,3123.6,3123.5,2.43625304]
[1642608019845,2.0467288,3123.6,3123.5,2.43625304]
[1642608020045,0.7076348,3123.6,3123.5,2.43625304]
[1642608020245,1.39121594,3123.6,3123.5,2.43625304]
[1642608020645,1.39121594,3123.6,3123.5,2.4461549]
[1642608021350,2.83585629,3123.6,3123.5,2.4461549]
[1642608021748,2.83585629,3123.6,3123.5,0.01448271]
[1642608021946,2.83585629,3123.6,3123.5,2.44515406]
[1642608022388,2.83585629,3123.6,3123.5,0.01448271]
[1642608023190,0.3,3123.5,3123.4,3.12387635]
[1642608023394,0.3,3123.5,3123.4,5.55118715]
[1642608023792,0.32405366,3123.5,3123.4,5.55118715]
[1642608023999,0.32405366,3123.5,3123.4,3.12387635]
[1642608024394,0.32405366,3123.5,3123.4,5.55271392]
[1642608025199,0.0516358,3124.2,3123.5,6.0]
[1642608025399,0.0516358,3124.2,3123.6,4.54484615]
[1642608025596,0.00341054,3124.1,3123.7,2.42883757]
[1642608025838,0.00341054,3124.1,3123.8,0.458]
[1642608026038,0.00284212,3124.0,3123.9,6.17883757]
[1642608026237,0.00284212,3124.0,3123.9,6.97930277]
[1642608026439,0.00284212,3124.0,3123.9,7.43730277]
[1642608026741,0.00284212,3124.0,3123.9,8.98344762]
[1642608027343,0.00284212,3124.0,3123.9,11.23344762]
[1642608027544,0.0516358,3124.7,3124.1,1.6004924]
[1642608027745,0.0516358,3124.7,3124.3,0.800245]
[1642608027944,0.0516358,3124.7,3124.5,1.43076607]
[1642608029443,0.0516358,3124.7,3124.5,3.03132977]
[1642608029697,0.00639267,3124.9,3124.6,8.88785993]
[1642608029897,0.00639267,3124.9,3124.6,6.458]
[1642608030100,0.00454738,3124.8,3124.6,6.458]
[1642608030296,0.68812852,3124.8,3124.6,6.458]
[1642608030494,0.6875601,3124.7,3124.6,6.458]
[1642608031300,0.6875601,3124.7,3124.6,8.90391994]
[1642608031500,0.6875601,3124.7,3124.6,9.90391994]
[1642608031702,0.3,3124.8,3124.7,6.0]
[1642608032003,0.00639267,3125.1,3124.7,6.0]
[1642608032004,0.00639267,3125.1,3124.7,9.70405864]
[1642608032201,0.00639267,3125.1,3124.8,2.44591994]
[1642608032400,0.00170527,3125.0,3124.7,8.8584187]
[1642608032600,0.00170527,3125.0,3124.8,2.44642041]
[1642608032800,0.14851473,3125.4,3124.9,7.6002182]
[1642608033002,0.14851473,3125.4,3125.0,4.84648374]
[1642608033203,0.10078842,3125.4,3125.1,0.458]
[1642608033442,0.10078842,3125.4,3125.1,0.45913685]
[1642608033843,0.10078842,3125.4,3125.3,4.89602709]
[1642608034249,0.10078842,3125.4,3125.2,0.8000825]
[1642608034446,0.10078842,3125.4,3125.1,1.25925685]
[1642608035349,0.10078842,3125.4,3125.1,2.05944735]
[1642608036549,0.01278534,3125.7,3125.2,6.0]
[1642608036747,0.01278534,3125.7,3125.2,8.5245731]
[1642608036945,0.00170527,3125.6,3125.2,10.1247231]
[1642608037391,0.00113685,3125.5,3125.2,10.1247231]
[1642608037992,0.00113685,3125.5,3125.3,1.16948478]
[1642608038194,0.00113685,3125.5,3125.4,6.458]
[1642608039802,0.01278534,3125.7,3125.5,3.0]
[1642608040000,0.01278534,3125.7,3125.5,4.25805]
[1642608040599,0.01278534,3125.7,3125.5,1.25805]
[1642608042240,1.30804968,3125.6,3125.5,1.25805]
[1642608044148,1.30804968,3125.6,3125.5,4.20805]
[1642608044602,0.31278534,3125.7,3125.5,4.20805]
[1642608044895,0.01278534,3125.7,3125.5,4.20805]
[1642608046098,0.00639267,3125.7,3125.5,4.20805]
[1642608047298,0.00639267,3125.7,3125.6,6.42558635]
[1642608047703,0.00752951,3125.7,3125.6,6.42558635]
[1642608048338,0.00752951,3125.7,3125.6,1.32558635]
[1642608048944,0.00752951,3125.7,3125.6,4.72558635]
[1642608049747,0.09687893,3126.1,3125.8,3.1997436]
[1642608050146,0.00170528,3126.0,3125.8,3.1997436]
[1642608050546,0.00113685,3125.9,3125.8,2.3998124]
[1642608051145,0.00113685,3125.9,3125.8,6.1078124]
[1642608051948,0.09687893,3126.1,3125.9,4.8]
[1642608052589,0.09687893,3126.1,3126.0,5.47107822]
[1642608052590,0.0516358,3126.1,3126.0,5.47107822]
[1642608052991,0.05277265,3126.1,3126.0,2.47107822]
[1642608054092,0.05277265,3126.1,3125.9,0.7998695]
[1642608054390,0.05277265,3126.1,3125.9,3.19702149]
[1642608054592,0.05277265,3126.1,3125.9,3.17422911]
[1642608054792,0.05277265,3126.1,3125.9,0.7998695]
[1642608054991,0.05277265,3126.1,3126.0,2.38593667]
[1642608055840,0.05277265,3126.1,3125.9,0.7998695]
[1642608055841,0.04637998,3126.1,3125.9,0.7998695]
[1642608056240,0.04637998,3126.1,3126.0,2.37937308]
[1642608057140,0.01278534,3126.3,3126.2,1.24131007]
[1642608057341,0.01278534,3126.3,3126.2,3.65235692]
[1642608057540,0.26112219,3126.3,3126.2,4.65235692]
[1642608057742,0.25472952,3126.3,3126.2,5.11035692]
[1642608057940,0.25472952,3126.3,3126.2,2.69931007]
[1642608058144,0.62643524,3126.4,3126.3,2.95]
[1642608058341,0.62643524,3126.4,3126.3,5.30877173]
[1642608058544,0.62643524,3126.4,3126.3,6.30877173]
[1642608058745,0.62643524,3126.4,3126.3,3.95]
[1642608058945,0.58119211,3126.4,3126.3,3.95]
[1642608059792,0.57479944,3126.4,3126.3,3.95]
[1642608060796,0.57479944,3126.4,3126.3,6.33765767]
[1642608061000,0.57479944,3126.4,3126.3,3.95]
[1642608061596,0.57479944,3126.4,3126.3,6.30723663]
[1642608061796,0.57479944,3126.4,3126.3,5.30723663]
[1642608061996,0.57479944,3126.4,3126.3,2.95]
[1642608062398,0.14851473,3126.8,3126.4,6.0]
[1642608062599,0.14851473,3126.8,3126.5,9.01272348]
[1642608062804,0.04524313,3127.0,3126.6,6.0]
[1642608062998,0.04524313,3127.0,3126.7,0.458]
[1642608063199,0.05802847,3127.1,3126.7,2.70904948]
[1642608063457,1.5760611,3127.7,3127.5,1.21380663]
[1642608063852,0.0073895,3127.6,3127.5,1.21380663]
[1642608064254,0.00263263,3127.6,3127.5,3.76853011]
[1642608064454,0.00263263,3127.6,3127.5,1.21380663]
[1642608065853,0.00263263,3127.6,3127.5,4.86380663]
[1642608066357,1.1841,3128.7,3127.7,6.0]
[1642608066656,0.14314301,3128.6,3127.8,5.42847957]
[1642608066854,0.14314301,3128.6,3127.8,4.98611102]
[1642608066855,0.13745877,3128.5,3127.8,4.98611102]
[1642608067092,0.14257458,3128.5,3127.8,4.98611102]
[1642608067288,0.14200616,3128.4,3127.8,4.98611102]
[1642608067489,0.00454739,3128.4,3128.1,1.38178822]
[1642608067688,0.00397896,3128.3,3128.1,2.98061252]
[1642608067888,0.02045499,3128.8,3128.2,8.53803372]
[1642608068091,0.02045499,3128.8,3128.2,12.39343962]
[1642608068288,2.30813874,3129.5,3128.2,15.5784059]
[1642608068289,0.00170528,3128.6,3128.2,15.5784059]
[1642608068494,0.1360121,3129.2,3128.2,8.5784059]
[1642608068700,0.13602153,3129.1,3128.5,0.7991423]
[1642608068893,0.13602153,3129.1,3128.5,1.2571423]
[1642608068894,0.00284211,3129.1,3128.5,1.2571423]
[1642608069494,0.00284211,3129.1,3128.6,2.53803372]
[1642608069694,0.00284211,3129.1,3128.5,1.2571423]
[1642608069695,2.61795401,3129.0,3128.5,1.2571423]
[1642608070093,0.00170527,3128.9,3128.5,1.2571423]
[1642608070293,0.00170527,3128.9,3128.5,2.8557823]
[1642608070493,0.00113684,3128.8,3128.5,2.8557823]
[1642608070942,0.14228326,3129.7,3128.5,2.8557823]
[1642608071144,0.13603061,3129.6,3128.5,2.8557823]
[1642608071354,0.14171484,3129.6,3128.5,2.05664]
[1642608071544,1.56388414,3129.0,3128.5,2.05664]
[1642608071746,1.56388414,3129.0,3128.5,1.59864]
[1642608071946,0.13774472,3128.9,3128.5,1.59864]
[1642608072347,0.00113684,3128.8,3128.5,1.59864]
[1642608072744,0.30113684,3128.8,3128.5,1.59864]
[1642608072946,0.00113684,3128.8,3128.5,1.59864]
[1642608073147,0.00113684,3128.8,3128.5,4.93596222]
[1642608073353,0.1360194,3129.7,3128.7,6.0]
[1642608073551,0.1360194,3129.7,3128.9,0.79913]
[1642608073852,0.14113521,3129.7,3129.0,0.458]
[1642608074049,0.1360194,3129.6,3129.0,0.458]
[1642608074246,0.1360194,3129.6,3129.1,1.53648227]
[1642608074448,0.00397897,3129.5,3129.1,1.99448227]
[1642608074893,0.00341054,3129.4,3129.1,1.99448227]
[1642608075298,0.00284212,3129.3,3129.1,1.99448227]
[1642608075698,0.0022737,3129.2,3129.1,6.34448227]
[1642608076097,0.02045499,3129.8,3129.3,2.39679]
[1642608076300,0.00209051,3130.4,3129.4,3.5016108]
[1642608076503,0.02045499,3130.3,3130.0,1.51144362]
[1642608076705,0.02045499,3130.3,3129.9,1.59765]
[1642608076706,0.02443395,3130.3,3129.9,1.59765]
[1642608076899,0.00209051,3130.4,3130.0,0.79883]
[1642608077098,0.00209051,3130.4,3130.0,1.80053527]
[1642608077299,0.00209051,3130.4,3130.1,0.00113684]
[1642608079452,1.33514779,3130.3,3130.1,0.00113684]
[1642608079853,0.262,3130.3,3130.1,0.00113684]
[1642608080055,0.00209051,3130.4,3130.1,0.00113684]
[1642608080850,0.00209051,3130.4,3130.2,1.19719393]
[1642608081253,0.00209051,3130.4,3130.2,4.14113532]
[1642608081466,3.0551,3131.7,3130.5,0.79864]
[1642608081654,2.54882273,3131.8,3130.6,0.03369078]
[1642608081857,0.00511582,3131.2,3130.6,0.458]
[1642608082297,0.00454739,3131.1,3131.0,1.25457561]
[1642608082703,0.00454739,3131.1,3131.0,5.51257561]
[1642608083097,0.02045499,3131.8,3131.0,1.71257561]
[1642608083395,0.00341054,3131.7,3131.0,1.71257561]
[1642608083593,0.00341054,3131.7,3131.1,0.79857]
[1642608083796,0.00284212,3131.6,3131.2,0.7985752]
[1642608084197,0.0022737,3131.5,3131.2,0.7985752]
[1642608084403,0.0022737,3131.5,3131.1,0.79857]
[1642608084596,0.02045499,3131.8,3131.1,0.79857]
[1642608084597,0.00170527,3131.4,3131.1,0.79857]
[1642608085001,0.00113685,3131.3,3131.1,0.79857]
[1642608085202,0.00113685,3131.3,3130.5,4.61395]
[1642608085203,1.45662562,3131.3,3130.5,4.61395]
[1642608085401,1.45662562,3131.3,3130.5,1.59745]
[1642608085603,2.00662562,3131.3,3130.6,0.00284212]
[1642608085866,1.525383,3130.8,3130.6,0.00284212]
[1642608086066,1.70662562,3131.3,3130.7,0.79872]
[1642608086465,1.70662562,3131.3,3130.8,0.00170527]
[1642608086768,0.25113685,3131.3,3130.8,0.00170527]
[1642608087070,1.41068568,3131.1,3130.8,0.00170527]
[1642608087267,0.3,3131.1,3130.8,0.00170527]
[1642608087465,0.00113685,3131.3,3130.8,0.00170527]
[1642608088069,0.00113685,3131.3,3130.9,2.13189906]
[1642608088268,0.00113685,3131.3,3131.0,0.79854]
[1642608088669,0.00113685,3131.3,3131.0,1.79854]
[1642608088870,0.00113685,3131.3,3131.0,0.79854]
[1642608089071,0.00113685,3131.3,3131.1,0.458]
[1642608089468,0.00113685,3131.3,3131.1,2.0550114]
[1642608089705,0.00113685,3131.3,3131.1,3.0550114]
[1642608090101,0.00113685,3131.3,3131.1,0.458]
[1642608090902,0.00113685,3131.3,3131.1,1.458]
[1642608091201,0.00113685,3131.3,3131.2,1.28089089]
[1642608091400,0.00113685,3131.3,3131.2,1.73889089]
[1642608091600,0.00113685,3131.3,3131.2,4.43889089]
[1642608093006,0.00113685,3131.3,3131.2,5.43889089]
[1642608093446,1.5760611,3132.4,3131.7,0.7983268]
[1642608093849,1.5760611,3132.4,3131.7,2.32013517]
[1642608093850,0.00568423,3132.3,3131.7,2.32013517]
[1642608094048,0.00568423,3132.3,3131.7,3.32013517]
[1642608094247,0.00511581,3132.2,3131.7,3.32013517]
[1642608094446,0.00511581,3132.2,3131.7,3.77813517]
[1642608094647,0.00454739,3132.1,3131.8,0.79835]
[1642608095048,0.00397896,3132.0,3131.8,0.79835]
[1642608095447,1.5760611,3132.4,3131.8,0.79835]
[1642608095448,1.52947164,3132.4,3131.8,5.94835]
[1642608095646,1.52947164,3132.4,3131.9,0.7983763]
[1642608095846,0.00227369,3132.3,3131.9,0.7983763]
[1642608096248,0.00170527,3132.2,3131.9,0.7983763]
[1642608096648,0.00113685,3132.1,3131.9,0.7983763]
[1642608098304,1.73060849,3132.4,3131.9,3.5983763]
[1642608098705,0.00113684,3132.3,3132.2,1.39101791]
[1642608098905,0.00113684,3132.3,3132.0,0.79839]
[1642608099806,0.00113684,3132.3,3132.0,1.5967395]
[1642608100009,0.00113684,3132.3,3132.0,0.79839]
[1642608100207,0.00113684,3132.3,3131.9,1.59678]
[1642608101249,0.00113684,3132.3,3131.9,2.3951654]
[1642608101452,0.00113684,3132.3,3131.9,1.59678]
[1642608102452,0.00113684,3132.3,3132.0,2.4083706]
[1642608102658,0.00113684,3132.3,3132.1,1.29523672]
[1642608102855,0.00113684,3132.3,3132.2,2.43476344]
[1642608103054,0.00113684,3132.3,3132.0,2.64218927]
[1642608104256,0.00113684,3132.3,3132.1,0.7982498]
[1642608104458,2.39511,3134.1,3132.4,4.95]
[1642608104459,0.27639994,3133.4,3132.4,4.95]
[1642608104730,1.60846473,3133.7,3132.5,0.458]
[1642608104918,0.00511581,3133.2,3132.5,0.458]
[1642608105115,0.79815,3133.5,3132.5,0.458]
[1642608105320,0.00454739,3133.1,3132.8,1.40304211]
[1642608105616,1.38256803,3133.3,3132.7,1.5963715]
[1642608105617,0.00397897,3133.0,3132.7,1.5963715]
[1642608105818,0.00397897,3133.0,3132.2,1.59656]
[1642608106022,0.00341054,3132.9,3132.2,1.59656]
[1642608106421,0.00284212,3132.8,3132.2,1.59656]
[1642608106622,1.45068246,3132.6,3132.2,1.59656]
[1642608106822,0.0022737,3132.7,3132.2,1.59656]
[1642608107020,0.00113685,3132.5,3132.3,0.798296]
[1642608107220,0.00170527,3132.6,3132.3,0.798296]
[1642608107420,0.0022737,3132.7,3132.3,0.798296]
[1642608107620,0.00113685,3132.5,3132.3,0.798296]
[1642608107824,0.00170527,3132.6,3132.3,0.798296]
[1642608108023,1.43460218,3132.5,3132.3,0.798296]
[1642608108223,1.43573903,3132.5,3132.3,0.798296]
[1642608108453,0.3,3132.5,3132.3,0.798296]
[1642608108654,1.82768095,3132.7,3132.3,0.798296]
[1642608109054,0.00170527,3132.6,3132.3,0.798296]
[1642608109453,0.00113685,3132.5,3132.3,0.798296]
[1642608109654,1.1865,3133.4,3132.3,0.798296]
[1642608109655,1.1865,3133.4,3132.4,4.9]
[1642608109855,1.1865,3133.4,3132.6,0.7981626]
[1642608110053,0.00454739,3133.3,3132.6,0.7981626]
[1642608110255,0.00454739,3133.3,3132.7,2.20142402]
[1642608110559,0.00397896,3133.2,3132.7,2.20142402]
[1642608110955,0.00341054,3133.1,3132.8,0.7982249]
[1642608111353,0.00284212,3133.0,3132.8,0.7982249]
[1642608111754,0.00284212,3133.0,3132.6,1.59631]
[1642608111755,0.00227369,3132.9,3132.6,1.59631]
[1642608111954,0.00227369,3132.9,3132.5,2.3946451]
[1642608112202,0.00170527,3132.8,3132.5,2.3946451]
[1642608112401,0.00170527,3132.8,3132.2,3.1931996]
[1642608112603,0.00113685,3132.7,3132.2,2.3949795]
[1642608112806,1.19679892,3132.4,3132.0,1.5967654]
[1642608113005,1.19679892,3132.4,3131.1,10.77812768]
[1642608113006,2.73995587,3132.4,3131.1,10.77812768]
[1642608113206,2.73995587,3132.4,3132.3,5.00113685]
[1642608114708,3.53852587,3132.4,3132.3,5.00113685]
[1642608115947,0.458,3133.2,3132.3,5.79946685]
[1642608116352,0.00341054,3133.1,3132.3,5.79946685]
[1642608116752,0.00284212,3133.0,3132.3,6.59779535]
[1642608116954,2.74944014,3132.7,3132.3,6.59779535]
[1642608117556,3.04944014,3132.7,3132.3,1.59779535]
[1642608118554,3.04944014,3132.7,3132.3,0.79946535]
[1642608118753,3.04944014,3132.7,3132.4,2.52352768]
[1642608118754,0.3,3132.7,3132.4,2.52352768]
[1642608118956,0.3,3132.7,3132.3,0.00113685]
[1642608118957,0.00227369,3132.9,3132.3,0.00113685]
[1642608119254,0.00170527,3132.8,3132.3,0.00113685]
[1642608119704,0.00113685,3132.7,3132.2,0.80015527]
[1642608120099,0.00113685,3132.7,3132.3,0.00113685]
[1642608120702,0.00113685,3132.7,3132.2,0.00170527]
[1642608120908,0.00113685,3132.7,3132.2,0.80014527]
[1642608121106,5.54457621,3132.3,3132.2,0.00170527]
[1642608121308,4.42970302,3132.3,3131.8,1.04826107]
[1642608121510,4.42970302,3132.3,3130.3,3.9883]
[1642608121511,0.01284331,3131.9,3130.3,3.9883]
[1642608121708,0.01284331,3131.9,3130.4,2.52352768]
[1642608121909,0.01284331,3131.9,3129.8,3.6502]
[1642608121910,6.181,3131.8,3130.3,1.5977795]
[1642608122111,6.181,3131.8,3130.5,0.01136847]
[1642608122112,0.79899,3131.3,3130.5,0.01136847]
[1642608122308,1.44769266,3130.6,3130.5,0.01136847]
[1642608122510,1.74769266,3130.6,3130.1,0.01364216]
[1642608122710,2.20569266,3130.6,3130.1,0.01364216]
[1642608123111,0.79908,3130.4,3129.7,0.01591586]
[1642608123374,0.458,3130.3,3129.7,0.01591586]
[1642608123570,6.84620554,3130.2,3129.7,0.01591586]
[1642608123765,2.41188126,3130.1,3129.7,0.01591586]
[1642608123966,2.45005648,3130.1,3129.7,0.01591586]
[1642608124165,0.79938,3129.9,3129.7,0.01591586]
[1642608124366,6.458,3129.8,3129.7,0.01591586]
[1642608124766,6.458,3129.8,3128.5,1.59854]
[1642608124767,6.79939,3129.7,3128.5,1.59854]
[1642608124966,3.6112184,3129.6,3128.6,2.71957403]
[1642608125168,3.9112184,3129.6,3128.8,0.00511581]
[1642608125468,3.9112184,3129.6,3128.9,2.71957403]
[1642608125469,0.3,3129.6,3128.9,2.71957403]
[1642608125668,1.12320554,3130.2,3129.1,1.40655093]
[1642608125870,0.458,3130.1,3129.2,2.71957403]
[1642608126072,0.4602737,3130.1,3129.3,2.71957403]
[1642608126269,0.00170527,3130.0,3129.3,0.00227369]
[1642608126569,0.00113685,3129.9,3129.2,1.50856379]
[1642608126771,0.00113685,3129.9,3129.3,3.51832967]
[1642608126972,0.00170527,3130.0,3129.4,2.71915968]
[1642608127207,0.00170527,3130.0,3129.5,1.01265398]
[1642608127406,0.00113685,3129.9,3129.6,5.19749308]
[1642608127605,0.00113685,3129.9,3129.7,3.71915968]
[1642608127803,1.59784,3131.3,3130.1,1.1482223]
[1642608127804,1.12695034,3131.2,3130.1,1.1482223]
[1642608128003,0.79887,3131.1,3130.3,0.7988818]
[1642608128202,0.79887,3131.1,3130.2,1.5977636]
[1642608128203,0.79887,3131.1,3130.4,0.79891]
[1642608128612,0.79887,3131.1,3130.2,1.5977636]
[1642608128908,0.00738951,3131.2,3130.4,0.7988785]
[1642608129109,0.00738951,3131.2,3131.0,2.34787012]
[1642608129308,0.01239023,3132.3,3131.0,2.34787012]
[1642608129309,0.00682108,3131.1,3131.0,2.34787012]
[1642608129507,0.00682108,3131.1,3131.0,4.95854386]
[1642608129706,0.00682108,3131.1,3131.0,2.34787012]
[1642608129906,3.90556874,3132.6,3131.1,4.0]
[1642608129907,1.45801683,3132.4,3131.1,4.0]
[1642608130107,1.5974,3132.1,3131.0,2.34787012]
[1642608130307,0.7987,3131.8,3131.0,0.79866]
[1642608130506,1.21332977,3131.2,3131.0,0.79866]
[1642608130711,0.00341054,3131.7,3130.8,1.59732]
[1642608130967,0.00341054,3131.7,3130.5,1.59767]
[1642608131273,2.4783334,3132.1,3130.6,0.80173522]
[1642608131274,1.17801424,3131.3,3130.6,0.80173522]
[1642608131467,0.7989,3131.1,3130.6,0.00284212]
[1642608131675,1.17801424,3131.3,3130.7,0.00227369]
[1642608131676,1.47801424,3131.3,3130.7,0.00227369]
[1642608131872,1.47801424,3131.3,3130.4,0.00397896]
[1642608131873,1.28284949,3131.2,3130.4,0.00397896]
[1642608132071,2.28284949,3131.2,3130.5,0.00341054]
[1642608132271,2.28284949,3131.2,3130.1,0.00568423]
[1642608132470,2.28284949,3131.2,3129.6,2.7187181]
[1642608132471,1.12873187,3130.2,3129.6,0.00852635]
[1642608132672,1.12873187,3130.2,3129.7,4.32477842]
[1642608132871,1.12873187,3130.2,3129.8,2.71878049]
[1642608132872,1.42873187,3130.2,3129.8,2.71878049]
[1642608133072,1.42873187,3130.2,3130.0,1.59788]
[1642608133474,1.42873187,3130.2,3130.1,0.00568423]
[1642608133677,0.3,3130.2,3130.1,0.00568423]
[1642608133878,0.799,3130.7,3130.1,0.00568423]
[1642608134075,1.099,3130.7,3130.1,0.00568423]
[1642608134727,1.11021676,3130.6,3130.0,0.00625266]
[1642608134930,4.21662907,3130.6,3130.0,0.00625266]
[1642608135128,2.61840907,3130.6,3130.0,0.80530266]
[1642608135531,1.11021676,3130.6,3130.1,0.00568423]
[1642608135733,1.11021676,3130.6,3130.1,2.40252693]
[1642608136131,1.11021676,3130.6,3130.2,0.00511581]
[1642608136534,1.48989466,3130.5,3130.2,0.00511581]
[1642608136731,5.01355212,3130.5,3130.1,0.00568423]
[1642608136930,5.01355212,3130.5,3129.9,0.79909]
[1642608137133,5.01355212,3130.5,3130.0,0.00625266]
[1642608137532,5.31355212,3130.5,3130.0,0.00625266]
[1642608137733,1.0,3130.4,3129.7,0.00795793]
[1642608137932,0.7994,3130.2,3129.0,0.01193689]
[1642608138132,1.59878,3130.0,3129.0,0.01193689]